bitfinex/quotes_SOLUSD_20240920
["timestamp","ask_amount","ask_price","bid_price","bid_amount"]
[1726793163365,12.82866338,142.32,142.27,0.2507168]
[1726793163366,12.82916338,142.31,142.27,7.2794168]
[1726793163554,1.75652888,142.34,142.27,7.2794168]
[1726793163555,5.80226338,142.3,142.27,7.2794168]
[1726793163755,7.0265,142.32,142.27,7.2794168]
[1726793163960,5.80202544,142.31,142.27,7.2794168]
[1726793164179,7.027,142.31,142.27,0.2507168]
[1726793164679,5.80198406,142.3,142.27,0.2507168]
[1726793164876,5.80198406,142.3,142.27,7.2794168]
[1726793165363,7.0265,142.32,142.28,7.0282]
[1726793165562,5.80164262,142.31,142.28,7.0282]
[1726793165763,5.80164262,142.3,142.29,20.67358048]
[1726793166576,5.80164262,142.3,142.29,7.40437]
[1726793166779,5.80164262,142.3,142.29,14.43637]
[1726793167385,7.0254,142.34,142.3,7.27808]
[1726793168086,5.80224377,142.33,142.3,14.31008]
[1726793168274,5.80224377,142.32,142.29,7.0277]
[1726793168473,5.80224377,142.31,142.29,7.0277]
[1726793169285,5.80224377,142.3,142.29,7.27868]
[1726793169977,5.80406874,142.3,142.29,7.27868]
[1726793170285,5.80406874,142.3,142.28,24.5988]
[1726793170483,5.80406874,142.3,142.28,17.5706]
[1726793170667,7.0269,142.31,142.28,17.5706]
[1726793170881,5.80363304,142.3,142.28,17.5706]
[1726793171195,7.0269,142.31,142.28,17.5706]
[1726793171379,5.80226985,142.3,142.28,17.5706]
[1726793171581,7.0265,142.32,142.28,17.5706]
[1726793171789,5.802299,142.31,142.28,24.5989]
[1726793171986,5.802299,142.3,142.28,24.5989]
[1726793172289,5.802299,142.29,142.28,24.5989]
[1726793173083,7.0265,142.32,142.28,24.5989]
[1726793173288,5.80247733,142.31,142.28,17.5706]
[1726793173507,7.55929002,142.3,142.27,0.2507168]
[1726793173697,7.0283,142.28,142.27,0.2507168]
[1726793175484,12.82879889,142.28,142.27,0.2507168]
[1726793176088,14.58606591,142.28,142.27,0.2507168]
[1726793176603,30.53726591,142.28,142.27,0.2507168]
[1726793177306,22.9795,142.28,142.27,0.2507168]
[1726793177678,28.77641496,142.28,142.27,0.2507168]
[1726793179787,5.79691496,142.28,142.27,0.2507168]
[1726793180588,7.028,142.29,142.27,0.2507168]
[1726793181093,12.82582371,142.28,142.27,0.2507168]
[1726793182008,5.79752371,142.28,142.27,0.2507168]
[1726793182214,5.79752371,142.28,142.27,7.2795168]
[1726793182406,23.3434,142.32,142.27,7.2795168]
[1726793182586,5.79812956,142.31,142.27,7.2795168]
[1726793182789,7.0268,142.32,142.28,7.0283]
[1726793183099,22.8519,142.36,142.28,7.0283]
[1726793183100,5.79866535,142.31,142.28,7.0283]
[1726793183293,7.026,142.33,142.28,7.0283]
[1726793183494,12.82584867,142.32,142.28,7.0283]
[1726793183694,5.79944867,142.31,142.28,7.0283]
[1726793184610,7.0264,142.32,142.28,7.0283]
[1726793184991,5.79975553,142.31,142.28,7.0283]
[1726793185191,7.0264,142.32,142.28,7.0283]
[1726793185398,5.79977179,142.31,142.28,7.0283]
[1726793185615,7.0264,142.32,142.28,7.0283]
[1726793185791,5.79983625,142.31,142.28,7.0283]
[1726793185998,7.0264,142.32,142.28,7.0283]
[1726793186295,5.79983625,142.31,142.28,7.0283]
[1726793186494,7.0264,142.32,142.28,7.0283]
[1726793186722,5.79773795,142.31,142.28,7.0283]
[1726793186901,7.0264,142.32,142.28,7.0283]
[1726793187101,5.79756099,142.31,142.28,7.0283]
[1726793187308,7.0264,142.32,142.28,7.0283]
[1726793188119,7.0264,142.32,142.27,24.8509168]
[1726793188420,5.79664714,142.31,142.27,24.8509168]
[1726793188591,7.0264,142.32,142.28,7.0282]
[1726793188796,22.8519,142.36,142.28,7.0282]
[1726793188797,5.79634222,142.31,142.28,7.0282]
[1726793189114,7.0254,142.34,142.29,7.0278]
[1726793189308,5.79681511,142.33,142.29,7.0278]
[1726793189630,5.79681511,142.32,142.3,7.0273]
[1726793189813,16.3166,142.36,142.29,17.5692]
[1726793190020,5.79699804,142.35,142.31,7.0265]
[1726793190197,5.79699804,142.34,142.31,7.0265]
[1726793190707,5.79647544,142.33,142.31,7.0265]
[1726793190906,5.79647544,142.33,142.3,7.27818]
[1726793191120,5.79647544,142.33,142.29,24.597]
[1726793191303,5.79111861,142.32,142.29,24.597]
[1726793191501,7.0254,142.34,142.29,24.597]
[1726793191700,5.79030172,142.33,142.29,24.597]
[1726793192004,5.7901337,142.32,142.29,24.597]
[1726793192500,7.026,142.33,142.29,24.597]
[1726793193999,5.78805929,142.32,142.29,24.597]
[1726793194422,7.0259,142.33,142.29,24.597]
[1726793195018,5.78802767,142.32,142.29,24.597]
[1726793195522,7.0259,142.33,142.29,24.597]
[1726793196225,5.78809898,142.32,142.29,24.597]
[1726793196395,7.0264,142.32,142.29,17.5692]
[1726793196600,7.0259,142.33,142.29,17.5692]
[1726793196804,5.78763923,142.32,142.29,17.5692]
[1726793197000,7.0259,142.33,142.29,17.5692]
[1726793197212,5.78785511,142.32,142.29,17.5692]
[1726793197415,7.0259,142.33,142.29,17.5692]
[1726793197710,5.7878433,142.32,142.29,17.5692]
[1726793197909,7.0259,142.33,142.29,17.5692]
[1726793198109,5.78777885,142.32,142.29,17.5692]
[1726793198297,7.0259,142.33,142.29,17.5692]
[1726793198507,5.7876271,142.32,142.29,17.5692]
[1726793198709,7.0254,142.34,142.29,24.5966]
[1726793199014,5.7874393,142.33,142.29,24.5966]
[1726793199211,5.7874393,142.32,142.29,24.5966]
[1726793199518,7.0254,142.34,142.29,24.5966]
[1726793199726,12.8134784,142.33,142.29,24.5966]
[1726793199920,5.7875784,142.32,142.29,24.5966]
[1726793202229,7.0255,142.34,142.29,24.5966]
[1726793202406,5.78941239,142.33,142.29,24.5966]
[1726793202609,5.78941239,142.32,142.29,24.5966]
[1726793202817,7.0259,142.33,142.29,24.5966]
[1726793203014,12.81606253,142.32,142.28,7.15369]
[1726793203304,8.78310554,142.32,142.27,7.2794168]
[1726793203504,7.0265,142.32,142.27,7.2794168]
[1726793203719,5.789069,142.31,142.27,7.2794168]
[1726793204405,7.0265,142.32,142.28,7.0282]
[1726793205127,5.78796272,142.31,142.28,7.0282]
[1726793205326,7.0259,142.33,142.29,7.27878]
[1726793205529,5.78795782,142.32,142.3,7.0272]
[1726793205731,7.0255,142.34,142.3,7.0272]
[1726793205913,5.78840753,142.33,142.3,7.0272]
[1726793206114,5.78840753,142.32,142.3,7.0272]
[1726793206316,7.0256,142.34,142.3,7.0272]
[1726793206519,5.78790523,142.33,142.3,7.0272]
[1726793206827,7.0256,142.34,142.3,7.0272]
[1726793207020,5.78775388,142.32,142.3,7.0272]
[1726793207423,5.78775388,142.33,142.3,7.0272]
[1726793207824,5.78756363,142.32,142.3,7.0272]
[1726793208029,7.0256,142.34,142.3,7.0272]
[1726793208229,5.78788962,142.33,142.3,7.0272]
[1726793208436,5.78788962,142.32,142.3,7.0272]
[1726793208746,7.0256,142.34,142.3,7.0272]
[1726793209038,5.78791975,142.33,142.3,7.0272]
[1726793209221,5.78791975,142.32,142.3,7.0272]
[1726793209535,7.0256,142.34,142.3,7.0272]
[1726793209717,5.7877356,142.33,142.3,7.0272]
[1726793209917,5.7877356,142.32,142.3,7.0272]
[1726793210116,7.0256,142.34,142.3,7.0272]
[1726793210329,5.78771451,142.33,142.3,7.0272]
[1726793210529,5.78771451,142.32,142.3,7.0272]
[1726793210835,7.0256,142.34,142.3,7.0272]
[1726793211036,5.78779436,142.33,142.3,7.0272]
[1726793211232,5.78779436,142.32,142.3,7.0272]
[1726793211435,7.0256,142.34,142.3,7.0272]
[1726793211638,5.78766129,142.33,142.3,7.0272]
[1726793211831,5.78766129,142.32,142.3,7.0272]
[1726793212035,7.0256,142.34,142.3,7.0272]
[1726793212233,5.78795699,142.33,142.3,7.0272]
[1726793212534,5.78795699,142.32,142.3,7.0272]
[1726793212724,7.0256,142.34,142.3,7.0272]
[1726793212919,12.81427091,142.33,142.28,17.5705]
[1726793213122,7.0271,142.31,142.28,17.5705]
[1726793213743,7.0271,142.31,142.27,7.2794168]
[1726793214732,5.78677968,142.3,142.27,7.2794168]
[1726793214932,5.78677968,142.3,142.13,17.11544572]
[1726793214933,0.37647,142.27,142.13,17.11544572]
[1726793215137,30.807184,142.24,142.15,7.2854168]
[1726793215439,30.807184,142.24,142.15,0.2507168]
[1726793215440,45.11594444,142.24,142.15,0.2507168]
[1726793216737,36.59040597,142.24,142.15,7.2851168]
[1726793216931,30.807184,142.24,142.15,7.2851168]
[1726793217139,45.11471263,142.24,142.15,7.2851168]
[1726793218524,36.58902646,142.24,142.15,7.2851168]
[1726793220445,36.59231225,142.24,142.15,7.2851168]
[1726793220938,12.81542825,142.24,142.16,51.40661411]
[1726793221244,7.0303,142.24,142.18,7.3457138]
[1726793221740,7.0303,142.24,142.18,7.3460138]
[1726793222752,7.0303,142.24,142.19,7.0327]
[1726793223037,7.0303,142.24,142.2,7.0323]
[1726793223247,7.0303,142.25,142.21,1.40628426]
[1726793223428,7.0295,142.26,142.21,7.0316]
[1726793223825,7.0298,142.25,142.21,7.0316]
[1726793224241,8.78785149,142.24,142.2,16.6629]
[1726793224542,7.0303,142.24,142.2,16.6629]
[1726793225434,7.0298,142.25,142.21,7.0317]
[1726793226646,7.0289,142.27,142.23,7.2815168]
[1726793227162,15.9816,142.3,142.23,0.2507168]
[1726793227346,5.78418071,142.29,142.26,7.0289]
[1726793227522,5.78418071,142.29,142.25,24.6041]
[1726793227723,7.0275,142.3,142.25,24.6041]
[1726793228423,7.0269,142.31,142.26,7.0292]
[1726793228635,7.0275,142.3,142.26,7.0292]
[1726793229629,33.7214,142.34,142.27,7.0288]
[1726793229944,7.0269,142.31,142.27,7.0288]
[1726793230327,7.0264,142.32,142.27,7.0288]
[1726793230848,7.0264,142.32,142.28,0.12549]
[1726793232752,7.0255,142.34,142.28,0.12549]
[1726793232923,12.81363253,142.33,142.29,7.15299]
[1726793233129,7.0259,142.33,142.29,7.15299]
[1726793233737,7.0259,142.33,142.28,0.12549]
[1726793234047,7.0264,142.32,142.28,7.15379]
[1726793234352,7.0279,142.29,142.25,63.6705]
[1726793234556,7.0279,142.29,142.25,13.6705]
[1726793235332,7.0274,142.3,142.26,7.0293]
[1726793235532,7.0269,142.31,142.26,7.0293]
[1726793235858,7.0269,142.31,142.27,0.25098]
[1726793236459,23.902374,142.34,142.25,13.6706]
[1726793236644,5.78660199,142.33,142.25,13.6706]
[1726793236826,7.0275,142.3,142.25,13.6706]
[1726793237966,7.0275,142.3,142.26,7.28028]
[1726793239832,7.0279,142.29,142.25,13.6709]
[1726793240032,7.0284,142.28,142.24,74.73109]
[1726793240241,7.029,142.27,142.23,16.0475168]
[1726793240637,37.01281084,142.33,142.23,16.0475168]
[1726793240638,7.0285,142.28,142.23,23.0780168]
[1726793240835,7.028,142.29,142.23,83.6243168]
[1726793241055,7.028,142.29,142.25,7.0298]
[1726793241238,7.0274,142.3,142.26,7.0293]
[1726793241658,7.027,142.31,142.27,7.27978]
[1726793244056,7.0264,142.32,142.28,7.0283]
[1726793244257,7.0264,142.32,142.29,0.12549]
[1726793245072,17.5567,142.4,142.32,0.12549]
[1726793245356,17.5567,142.4,142.32,0.25098]
[1726793245740,7.0246,142.36,142.32,7.27718]
[1726793246067,7.0249,142.35,142.31,17.5667]
[1726793246642,7.0256,142.34,142.31,0.25098]
[1726793247748,2.00707804,142.38,142.31,0.25098]
[1726793247749,7.0249,142.35,142.31,7.27778]
[1726793248639,7.0249,142.35,142.31,0.25098]
[1726793249771,7.0249,142.35,142.31,57.27768]
[1726793250258,7.0244,142.36,142.32,7.0262]
[1726793251654,7.024,142.37,142.33,7.0258]
[1726793251849,7.0244,142.36,142.33,0.25098]
[1726793252361,7.0244,142.36,142.32,24.5919]
[1726793252737,7.0244,142.36,142.33,0.12549]
[1726793252941,7.0258,142.34,142.3,7.027]
[1726793254153,7.0253,142.35,142.31,0.12549]
[1726793255367,7.0246,142.36,142.32,0.12549]
[1726793255579,7.0241,142.37,142.33,0.12549]
[1726793255946,7.0241,142.37,142.33,7.15109]
[1726793256569,7.0241,142.37,142.33,0.12549]
[1726793256940,7.0245,142.36,142.33,0.12549]
[1726793257864,7.0241,142.37,142.33,7.15139]
[1726793259561,7.0247,142.36,142.32,7.032]
[1726793259767,7.0247,142.36,142.32,7.0263]
[1726793260768,7.025,142.35,142.32,0.12549]
[1726793260986,7.0246,142.36,142.32,0.37647]
[1726793262154,0.2507168,142.38,142.33,7.0256]
[1726793262356,0.2507168,142.38,142.34,0.25098]
[1726793262558,7.2741168,142.38,142.34,7.27618]
[1726793262878,0.2507168,142.38,142.35,15.677]
[1726793263046,0.2507168,142.38,142.35,22.7015]
[1726793263250,0.2507168,142.38,142.36,7.037]
[1726793263669,0.2507168,142.38,142.36,15.4659194]
[1726793264055,0.2507168,142.38,142.35,31.8548194]
[1726793265073,0.2507168,142.38,142.36,0.25098]
[1726793265375,0.2507168,142.38,142.36,0.66607832]
[1726793266247,0.2507168,142.38,142.37,7.0239]
[1726793267476,0.2507168,142.38,142.37,7.40037]
[1726793267982,0.2507168,142.38,142.36,7.0244]
[1726793268872,0.2507168,142.38,142.37,0.25098]
[1726793269654,0.2507168,142.38,142.37,7.27488]
[1726793270559,0.2507168,142.38,142.37,57.40037]
[1726793271867,0.2507168,142.38,142.37,101.177254]
[1726793272472,0.2507168,142.38,142.37,108.214254]
[1726793273277,0.342767,142.42,142.41,74.95327]
[1726793273461,0.342767,142.42,142.41,81.99027]
[1726793273667,0.342767,142.42,142.41,74.95327]
[1726793275681,0.342767,142.42,142.41,81.99027]
[1726793277280,0.342767,142.42,142.41,105.767154]
[1726793281390,0.342767,142.42,142.41,81.73929]
[1726793281687,0.342767,142.42,142.4,7.0223]
[1726793281907,0.342767,142.42,142.4,24.578]
[1726793282385,0.342767,142.42,142.37,67.5592]
[1726793282686,7.364367,142.42,142.38,7.0233]
[1726793283484,0.342767,142.42,142.39,7.0229]
[1726793286883,0.342767,142.42,142.4,7.0223]
[1726793287078,0.342767,142.42,142.4,0.25098]
[1726793289367,7.364467,142.42,142.39,0.12549]
[1726793289683,0.342767,142.42,142.39,57.27388]
[1726793290876,0.342767,142.42,142.41,0.25098]
[1726793293272,0.342767,142.42,142.41,7.27288]
[1726793293593,0.342767,142.42,142.41,57.39837]
[1726793293975,0.342767,142.42,142.41,70.66483285]
[1726793295567,0.342767,142.42,142.41,94.44171685]
[1726793296787,0.342767,142.42,142.41,101.47871685]
[1726793298196,0.342767,142.42,142.41,70.66483285]
[1726793299691,0.342767,142.42,142.41,7.14739]
[1726793299901,0.342767,142.42,142.41,0.12549]
[1726793300394,0.342767,142.42,142.41,7.14739]
[1726793301097,0.342767,142.42,142.41,0.25098]
[1726793303582,0.342767,142.42,142.41,7.27288]
[1726793304088,0.342767,142.42,142.41,57.39837]
[1726793304498,0.342767,142.42,142.41,94.44171685]
[1726793305576,0.342767,142.42,142.41,101.47871685]
[1726793305791,0.342767,142.42,142.41,94.44171685]
[1726793305993,0.342767,142.42,142.41,81.175254]
[1726793306391,0.342767,142.42,142.41,57.14739]
[1726793307207,0.342767,142.42,142.41,50.12549]
[1726793307405,0.342767,142.42,142.41,57.14739]
[1726793307708,0.342767,142.42,142.41,57.39837]
[1726793313907,0.342767,142.42,142.41,0.12549]
[1726793314205,0.342767,142.42,142.37,17.5592]
[1726793314405,5.79732135,142.41,142.37,17.5592]
[1726793314582,0.342767,142.42,142.37,17.5592]
[1726793314788,5.79628463,142.41,142.37,24.5828]
[1726793315293,5.79628463,142.4,142.37,24.5828]
[1726793315493,2.09828985,142.42,142.35,50.0]
[1726793315695,5.7964207,142.41,142.35,57.0245]
[1726793315999,5.7964207,142.4,142.35,57.0245]
[1726793316409,5.7964207,142.39,142.35,57.0245]
[1726793316597,2.09828985,142.42,142.35,57.0245]
[1726793316805,5.79545912,142.41,142.35,57.0245]
[1726793316992,5.79545912,142.4,142.35,57.0245]
[1726793317192,5.79545912,142.39,142.35,57.0245]
[1726793317393,7.0226,142.4,142.35,57.0245]
[1726793317602,5.79638058,142.39,142.36,7.40077]
[1726793317905,7.364267,142.42,142.37,7.43835842]
[1726793318092,5.79693089,142.41,142.37,7.0238]
[1726793318396,5.79693089,142.4,142.37,7.0238]
[1726793318601,7.364267,142.42,142.37,7.0238]
[1726793318790,5.79789128,142.41,142.37,7.0238]
[1726793318991,5.79789128,142.4,142.37,7.0238]
[1726793319413,7.364267,142.42,142.38,0.25098]
[1726793319614,5.79793414,142.41,142.38,0.25098]
[1726793319915,5.79793414,142.4,142.38,0.25098]
[1726793320111,7.364267,142.42,142.38,0.25098]
[1726793320318,5.79863821,142.41,142.38,0.25098]
[1726793320518,5.79863821,142.4,142.38,0.25098]
[1726793320716,7.364267,142.42,142.38,0.25098]
[1726793320899,5.79884795,142.41,142.38,0.25098]
[1726793321099,7.364267,142.42,142.38,0.25098]
[1726793321310,5.79883455,142.41,142.38,0.25098]
[1726793321617,7.364267,142.42,142.38,0.25098]
[1726793321816,5.79892869,142.41,142.38,0.25098]
[1726793322022,7.364267,142.42,142.38,0.25098]
[1726793322206,5.79904179,142.41,142.38,0.25098]
[1726793322407,7.364267,142.42,142.38,0.25098]
[1726793323019,5.79904637,142.41,142.38,0.25098]
[1726793323214,7.364267,142.42,142.38,0.25098]
[1726793323425,5.7990364,142.41,142.38,0.25098]
[1726793323615,7.364267,142.42,142.38,0.25098]
[1726793323919,12.82075101,142.41,142.37,7.0238]
[1726793324115,7.0221,142.41,142.37,7.0238]
[1726793324423,7.0221,142.41,142.37,0.25098]
[1726793325005,7.0225,142.4,142.36,17.5604]
[1726793325219,7.0225,142.4,142.36,24.5847]
[1726793326104,7.022,142.41,142.37,7.27478]
[1726793326298,7.364367,142.42,142.38,7.0233]
[1726793326700,5.79869388,142.41,142.38,7.0233]
[1726793328733,5.79869388,142.41,142.37,57.27468]
[1726793329024,12.82079388,142.41,142.37,7.0237]
[1726793329209,7.0221,142.41,142.37,7.0237]
[1726793332400,7.0221,142.41,142.36,24.5846]
[1726793335327,7.0225,142.4,142.36,24.5846]
[1726793340134,7.0221,142.41,142.37,7.0239]
[1726793343034,7.364267,142.42,142.38,7.0234]
[1726793343216,5.80206545,142.41,142.38,7.0234]
[1726793343534,0.342767,142.42,142.38,7.0234]
[1726793343736,5.80216612,142.41,142.39,7.0228]
[1726793343915,0.342767,142.42,142.39,7.0228]
[1726793344112,5.80289873,142.41,142.39,13.27927522]
[1726793344319,0.342767,142.42,142.41,7.27288]
[1726793345639,0.342767,142.42,142.41,20.55215522]
[1726793346635,0.342767,142.42,142.41,20.96561484]
[1726793346833,0.342767,142.42,142.41,20.55215522]
[1726793347138,0.342767,142.42,142.41,7.27288]
[1726793347344,7.364367,142.42,142.37,50.0]
[1726793348317,7.364367,142.42,142.38,7.0234]
[1726793349227,7.364367,142.42,142.38,7.0233]
[1726793349228,0.342767,142.42,142.38,7.0233]
[1726793349624,0.342767,142.42,142.39,7.0228]
[1726793351138,0.342767,142.42,142.38,24.70659]
[1726793351329,7.364267,142.42,142.38,24.70659]
[1726793352437,5.81032747,142.41,142.39,7.27368]
[1726793352649,0.342767,142.42,142.39,7.27368]
[1726793353143,0.342767,142.42,142.4,7.0224]
[1726793357138,5.80308071,142.41,142.4,7.0224]
[1726793357445,0.342767,142.42,142.4,7.0224]
[1726793357744,0.342767,142.42,142.38,17.5578]
[1726793357745,5.80363884,142.41,142.38,24.5808]
[1726793358041,0.342767,142.42,142.38,24.5808]
[1726793358242,5.80378015,142.41,142.38,24.5808]
[1726793358427,0.342767,142.42,142.38,24.5808]
[1726793359533,5.80420876,142.41,142.38,24.5808]
[1726793359929,5.80420876,142.41,142.39,7.0228]
[1726793360132,0.342767,142.42,142.4,7.0224]
[1726793361846,0.342767,142.42,142.41,7.0219]
[1726793362531,6.14793803,142.42,142.41,7.27288]
[1726793363241,11.95372197,142.42,142.41,7.27288]
[1726793363444,6.14793803,142.42,142.41,7.27288]
[1726793366732,11.95322647,142.42,142.41,7.27288]
[1726793366935,11.95322647,142.42,142.4,17.5559]
[1726793367139,6.14793803,142.42,142.4,17.5559]
[1726793369139,0.342767,142.42,142.4,24.5782]
[1726793369647,0.342767,142.42,142.41,7.27288]
[1726793369850,0.342767,142.42,142.41,57.39837]
[1726793370035,0.342767,142.42,142.41,70.66421576]
[1726793372153,0.342767,142.42,142.41,77.70121576]
[1726793373235,0.342767,142.42,142.41,101.47809976]
[1726793374730,0.342767,142.42,142.41,94.44109976]
[1726793375049,0.342767,142.42,142.41,101.47809976]
[1726793375355,0.342767,142.42,142.41,94.44109976]
[1726793376153,0.342767,142.42,142.41,81.175254]
[1726793376454,0.342767,142.42,142.41,94.44109976]
[1726793377052,0.342767,142.42,142.41,101.47809976]
[1726793379765,0.342767,142.42,142.41,114.44109976]
[1726793379963,0.3128138,142.48,142.47,24.94297]
[1726793380256,0.3128138,142.48,142.47,64.0536404]
[1726793381148,0.3128138,142.48,142.47,71.0726404]
[1726793381355,0.3128138,142.48,142.47,70.66131576]
[1726793381943,0.3128138,142.48,142.47,77.69831576]
[1726793382143,0.3128138,142.48,142.47,70.66131576]
[1726793387554,0.3128138,142.48,142.47,101.47519976]
[1726793389361,0.3128138,142.48,142.47,149.53329976]
[1726793389663,0.342767,142.51,142.5,74.93777]
[1726793389966,0.342767,142.51,142.5,111.98049976]
[1726793390749,0.342767,142.51,142.5,119.01749976]
[1726793393671,15.7977838,142.56,142.52,57.0163]
[1726793393967,15.7977838,142.56,142.53,0.37647]
[1726793394169,22.8124838,142.56,142.53,0.25098]
[1726793395053,22.8124838,142.56,142.5,104.58652976]
[1726793395054,15.7977838,142.56,142.5,67.5438]
[1726793395273,7.0152,142.55,142.5,74.5609]
[1726793396466,7.0152,142.55,142.51,0.12549]
[1726793396842,7.0152,142.55,142.51,0.25098]
[1726793398470,7.0157,142.54,142.51,0.25098]
[1726793399351,7.0161,142.53,142.51,0.25098]
[1726793400366,7.0161,142.53,142.5,67.5438]
[1726793400575,7.0161,142.53,142.51,0.25098]
[1726793400762,17.55166825,142.56,142.51,0.25098]
[1726793400763,7.0157,142.54,142.51,0.25098]
[1726793402360,7.0157,142.54,142.5,67.5438]
[1726793402361,1.75388246,142.53,142.47,17.5468]
[1726793402568,15.7977838,142.56,142.47,17.5468]
[1726793402569,17.5392,142.54,142.47,17.5468]
[1726793402758,7.0174,142.51,142.47,17.5468]
[1726793403155,7.0174,142.51,142.46,57.1267478]
[1726793403156,7.019,142.47,142.46,0.1076478]
[1726793403565,21.2597,142.5,142.46,0.1076478]
[1726793403566,7.0186,142.48,142.46,0.1076478]
[1726793406153,8.77379074,142.47,142.46,0.1076478]
[1726793406671,14.57531883,142.47,142.46,0.1076478]
[1726793406889,8.77379074,142.47,142.46,0.1076478]
[1726793407050,53.60454903,142.47,142.46,0.1076478]
[1726793408764,7.0214,142.42,142.41,0.3276297]
[1726793409982,7.021,142.43,142.41,0.3276297]
[1726793410274,15.2522,142.47,142.41,0.3276297]
[1726793410470,7.0203,142.45,142.41,0.3276297]
[1726793411082,7.0203,142.45,142.41,7.3495297]
[1726793415086,7.0195,142.46,142.41,7.3495297]
[1726793415469,7.0195,142.46,142.42,0.25098]
[1726793415867,7.02,142.45,142.42,0.25098]
[1726793416366,6.2011,142.5,142.42,0.25098]
[1726793416367,7.0186,142.48,142.42,50.25098]
[1726793416563,7.0186,142.48,142.44,0.25098]
[1726793417095,7.0191,142.47,142.44,0.25098]
[1726793419591,7.0181,142.49,142.45,7.0199]
[1726793420273,7.0181,142.49,142.46,0.25098]
[1726793422869,7.0176,142.5,142.46,7.27038]
[1726793423069,7.0171,142.51,142.46,57.27038]
[1726793423275,7.0171,142.51,142.47,7.14439]
[1726793423473,7.0171,142.51,142.48,0.25098]
[1726793425073,7.0166,142.52,142.48,0.25098]
[1726793425277,7.0162,142.53,142.49,7.018]
[1726793425587,7.0162,142.53,142.5,0.25098]
[1726793425766,7.0156,142.54,142.5,7.26838]
[1726793426177,6.064097,142.57,142.5,50.25098]
[1726793426380,7.0148,142.56,142.52,7.0162]
[1726793426682,7.076197,142.57,142.52,50.25098]
[1726793427495,7.076197,142.57,142.53,0.12549]
[1726793427674,7.076197,142.57,142.53,7.14129]
[1726793427675,0.062097,142.57,142.53,7.14129]
[1726793427999,0.062097,142.57,142.54,0.25098]
[1726793429369,7.076497,142.57,142.54,0.25098]
[1726793430280,7.0152,142.55,142.52,0.25098]
[1726793433785,1.81584228,142.57,142.49,7.0179]
[1726793433991,19.35154228,142.57,142.48,67.546]
[1726793434183,7.0169,142.52,142.48,67.546]
[1726793434388,7.017,142.51,142.48,67.546]
[1726793434597,7.017,142.51,142.46,57.0194]
[1726793435281,7.017,142.51,142.47,7.0189]
[1726793435798,7.017,142.51,142.48,0.25098]
[1726793437398,7.0183,142.49,142.45,17.5493]
[1726793437580,7.018,142.49,142.44,50.0]
[1726793438891,7.018,142.49,142.45,0.25098]
[1726793439277,7.018,142.49,142.45,7.27078]
[1726793439580,7.0176,142.5,142.46,0.12549]
[1726793440291,25.53132322,142.52,142.44,50.0]
[1726793440879,7.0186,142.48,142.44,50.0]
[1726793441095,7.0181,142.49,142.44,57.02]
[1726793441302,7.0181,142.49,142.45,7.0198]
[1726793441885,7.0181,142.49,142.46,0.25098]
[1726793444498,7.0185,142.48,142.44,50.0]
[1726793444706,1.75467371,142.51,142.44,50.0]
[1726793445007,7.0191,142.47,142.44,50.0]
[1726793447096,7.0186,142.48,142.44,50.0]
[1726793453222,7.0177,142.5,142.45,25.35795375]
[1726793453395,7.0177,142.5,142.46,0.41190469]
[1726793454101,7.0177,142.5,142.46,7.43130469]
[1726793454623,7.0171,142.51,142.47,7.26988]
[1726793455616,7.0171,142.51,142.47,0.25098]
[1726793455806,7.0176,142.5,142.47,0.25098]
[1726793456916,7.0181,142.49,142.45,24.6949346]
[1726793457117,1.75430816,142.52,142.45,17.6750346]
[1726793457118,7.0185,142.48,142.45,17.6750346]
[1726793458113,7.0191,142.47,142.45,0.1256346]
[1726793459326,7.0185,142.48,142.45,0.1256346]
[1726793460332,7.0191,142.47,142.45,0.1256346]
[1726793460509,1.75469089,142.5,142.45,0.1256346]
[1726793460510,7.0195,142.46,142.45,0.1256346]